bitfinex/quotes_SOLUSD_20240613
["timestamp","ask_amount","ask_price","bid_price","bid_amount"]
[1718251835285,15.257,151.72,151.69,8.35]
[1718251835898,15.257,151.72,151.62,0.17]
[1718251836192,15.257,151.72,151.68,8.35]
[1718251836387,15.257,151.72,151.69,8.35]
[1718251837377,15.257,151.72,151.62,0.68]
[1718251837599,15.257,151.72,151.69,8.35]
[1718251839493,15.257,151.72,151.62,3.1203]
[1718251839494,6.6635,151.75,151.7,8.35]
[1718251839700,15.0135,151.75,151.7,8.35]
[1718251840690,15.0135,151.75,151.69,8.35]
[1718251841789,8.35,151.74,151.69,8.35]
[1718251841987,6.6635,151.75,151.7,8.35]
[1718251842195,15.0135,151.75,151.7,8.35]
[1718251842691,6.6635,151.75,151.71,8.35]
[1718251843582,6.6635,151.75,151.72,8.35]
[1718251844295,6.4397,151.79,151.69,0.17]
[1718251844469,6.4397,151.79,151.75,8.35]
[1718251845176,6.4397,151.79,151.69,20.68]
[1718251845177,6.4397,151.79,151.76,8.35]
[1718251845790,6.4397,151.79,151.75,8.35]
[1718251852606,6.4397,151.79,151.7,16.0958]
[1718251852607,6.4397,151.79,151.76,8.35]
[1718251852810,269.4568,151.8,151.77,8.35]
[1718251853305,269.4568,151.8,151.78,8.35]
[1718251853306,254.3,151.8,151.78,8.35]
[1718251854184,254.3,151.8,151.77,8.35]
[1718251854602,254.3,151.8,151.71,0.17]
[1718251854904,254.3,151.8,151.77,8.35]
[1718251855414,254.3,151.8,151.78,8.35]
[1718251861205,14.8532,151.83,151.78,8.35]
[1718251864014,8.35,151.82,151.77,8.35]
[1718251865618,6.5032,151.83,151.77,8.35]
[1718251865817,14.8532,151.83,151.78,8.35]
[1718251867003,14.8532,151.83,151.71,20.68]
[1718251867205,8.35,151.8,151.75,8.35]
[1718251867402,8.35,151.79,151.74,8.35]
[1718251867714,8.35,151.81,151.75,8.35]
[1718251872110,6.5032,151.83,151.75,8.35]
[1718251872300,8.35,151.81,151.76,8.35]
[1718251872500,8.35,151.82,151.77,8.35]
[1718251874721,8.35,151.82,151.76,8.35]
[1718251874920,6.5032,151.83,151.76,8.35]
[1718251874921,8.35,151.81,151.76,8.35]
[1718251878533,8.35,151.81,151.72,0.17]
[1718251878740,8.35,151.81,151.76,8.35]
[1718251879528,8.35,151.82,151.76,8.35]
[1718251879907,6.5032,151.83,151.76,8.35]
[1718251880223,8.35,151.82,151.76,8.35]
[1718251881207,6.5032,151.83,151.76,8.35]
[1718251881610,8.35,151.82,151.76,8.35]
[1718251882711,6.5032,151.83,151.76,8.35]
[1718251882911,8.35,151.82,151.76,8.35]
[1718251884827,8.35,151.81,151.76,8.35]
[1718251885442,8.35,151.81,151.72,0.51]
[1718251885619,8.35,151.81,151.76,8.35]
[1718251886631,8.35,151.81,151.72,0.51]
[1718251886832,8.35,151.81,151.75,8.35]
[1718251888417,8.35,151.8,151.75,8.35]
[1718251888622,0.17,151.82,151.75,8.35]
[1718251888823,8.35,151.8,151.75,8.35]
[1718251889217,45.17,151.82,151.75,8.35]
[1718251891631,45.17,151.82,151.71,20.0]
[1718251891836,45.17,151.82,151.75,8.35]
[1718251892217,45.17,151.82,151.71,20.0]
[1718251892534,45.17,151.82,151.75,8.35]
[1718251892535,0.17,151.82,151.75,8.35]
[1718251892733,8.35,151.81,151.76,8.35]
[1718251892913,8.35,151.81,151.72,0.34]
[1718251893117,8.35,151.81,151.76,8.35]
[1718251894718,8.52,151.82,151.76,8.35]
[1718251895128,6.5032,151.83,151.76,8.35]
[1718251895328,8.35,151.81,151.76,8.35]
[1718251897116,8.35,151.81,151.71,20.0]
[1718251897438,8.35,151.79,151.73,8.35]
[1718251897625,8.35,151.79,151.74,8.35]
[1718251898627,8.35,151.79,151.71,20.0]
[1718251898825,8.35,151.79,151.74,8.35]
[1718251899332,8.35,151.78,151.7,16.0958]
[1718251899533,8.35,151.76,151.7,16.0958]
[1718251899741,8.35,151.76,151.71,8.35]
[1718251901449,8.35,151.76,151.7,16.0958]
[1718251901450,8.35,151.77,151.72,8.35]
[1718251901943,8.35,151.76,151.71,8.35]
[1718251902930,8.35,151.76,151.7,16.0958]
[1718251902931,8.35,151.76,151.66,21.48993368]
[1718251903140,8.35,151.76,151.71,8.35]
[1718251903850,8.35,151.75,151.7,8.35]
[1718251904144,8.35,151.75,151.67,0.34]
[1718251904343,8.35,151.75,151.69,8.35]
[1718251905236,8.35,151.75,151.67,0.34]
[1718251905432,6.3599,151.78,151.67,20.34]
[1718251905642,8.35,151.74,151.69,8.35]
[1718251905945,8.35,151.75,151.67,20.34]
[1718251906163,8.35,151.74,151.67,20.0]
[1718251906335,8.35,151.74,151.69,8.35]
[1718251907453,8.35,151.74,151.66,16.1856]
[1718251907652,8.35,151.75,151.66,16.1856]
[1718251908157,6.3599,151.78,151.72,8.35]
[1718251908464,8.35,151.79,151.74,8.35]
[1718251910353,16.2027,151.8,151.74,8.35]
[1718251910542,8.52,151.79,151.73,8.35]
[1718251913529,8.52,151.79,151.69,0.17]
[1718251913823,8.35,151.78,151.73,8.35]
[1718251914831,0.17,151.79,151.69,0.51]
[1718251915229,8.35,151.78,151.73,8.35]
[1718251915744,0.17,151.79,151.73,8.35]
[1718251915941,8.35,151.78,151.73,8.35]
[1718251916141,8.35,151.79,151.73,8.35]
[1718251916450,8.35,151.81,151.75,8.35]
[1718251916648,8.35,151.81,151.72,0.17]
[1718251916843,254.3,151.82,151.76,8.35]
[1718251917050,254.3,151.82,151.78,8.35]
[1718251918639,254.3,151.82,151.77,15.6736]
[1718251918838,254.3,151.82,151.81,8.35]
[1718251919744,252.21837469,151.82,151.81,28.69]
[1718251921172,8.35,151.89,151.81,28.69]
[1718251921475,8.35,151.89,151.83,8.35]
[1718251921838,22.345,151.92,151.78,0.17]
[1718251921839,0.17,151.91,151.78,0.17]
[1718251922053,8.35,151.86,151.81,8.35]
[1718251922645,0.68,151.91,151.82,8.35]
[1718251922849,8.35,151.87,151.82,8.35]
[1718251923258,8.35,151.87,151.78,0.68]
[1718251923453,8.35,151.87,151.82,8.35]
[1718251924452,0.68,151.91,151.78,20.68]
[1718251924654,8.35,151.86,151.8,8.35]
[1718251924890,8.35,151.85,151.78,20.34]
[1718251925072,8.35,151.85,151.8,8.35]
[1718251925456,8.35,151.86,151.8,8.35]
[1718251925976,8.35,151.85,151.8,8.35]
[1718251928974,8.35,151.85,151.78,20.0]
[1718251931267,8.35,151.85,151.79,8.35]
[1718251931586,8.35,151.85,151.78,20.0]
[1718251931763,8.35,151.84,151.79,8.35]
[1718251932067,8.35,151.84,151.77,15.6736]
[1718251932271,8.35,151.84,151.78,8.35]
[1718251932461,8.35,151.85,151.8,8.35]
[1718251932871,8.35,151.85,151.77,15.6736]
[1718251933171,8.35,151.85,151.8,8.35]
[1718251937556,22.3508,151.87,151.77,15.6736]
[1718251937774,8.35,151.86,151.81,8.35]
[1718251938479,22.8331,151.91,151.81,8.35]
[1718251938779,8.35,151.87,151.81,8.35]
[1718251939356,8.35,151.87,151.82,8.35]
[1718251939556,8.35,151.88,151.83,8.35]
[1718251940972,0.17,151.9,151.83,8.35]
[1718251941172,0.68,151.9,151.83,8.35]
[1718251941362,8.35,151.88,151.83,8.35]
[1718251941965,0.68,151.9,151.83,8.35]
[1718251942182,8.35,151.88,151.83,8.35]
[1718251947792,8.35,151.89,151.84,8.35]
[1718251951093,22.8331,151.91,151.79,0.34]
[1718251951094,22.8331,151.91,151.85,8.35]
[1718251951293,8.35,151.9,151.85,8.35]
[1718251953408,22.8331,151.91,151.85,8.35]
[1718251953700,22.8331,151.91,151.82,15.1198]
[1718251953701,22.8331,151.91,151.86,8.35]
[1718251953891,8.35,151.9,151.85,8.35]
[1718251954295,8.35,151.89,151.82,15.1198]
[1718251954509,8.35,151.89,151.84,8.35]
[1718251956378,22.8331,151.91,151.82,15.1198]
[1718251956379,8.35,151.88,151.82,15.1198]
[1718251956579,8.35,151.87,151.81,8.35]
[1718251956783,8.35,151.86,151.81,8.35]
[1718251959295,0.34,151.9,151.82,8.35]
[1718251959501,8.35,151.89,151.84,8.35]
[1718251960008,0.17,151.9,151.84,8.35]
[1718251960217,8.35,151.89,151.84,8.35]
[1718251960400,0.17,151.9,151.84,8.35]
[1718251960605,8.35,151.89,151.84,8.35]
[1718251961295,8.35,151.9,151.84,8.35]
[1718251961802,8.35,151.9,151.85,8.35]
[1718251962609,41.6491152,151.95,151.86,8.35]
[1718251962824,8.35,151.91,151.86,8.35]
[1718251962993,8.35,151.91,151.85,8.35]
[1718251963391,8.35,151.91,151.83,15.2034]
[1718251963602,8.35,151.91,151.85,8.35]
[1718251963803,8.35,151.9,151.85,8.35]
[1718251965904,8.35,151.91,151.85,8.35]
[1718251966707,8.35,151.91,151.83,15.2034]
[1718251966912,8.35,151.91,151.86,8.35]
[1718251967440,0.17,151.94,151.86,8.35]
[1718251967585,8.35,151.91,151.86,8.35]
[1718251975104,8.35,151.91,151.83,15.2034]
[1718251975312,8.35,151.91,151.85,8.35]
[1718251978433,8.35,151.9,151.85,8.35]
[1718251980621,8.35,151.86,151.79,16.157]
[1718251981024,8.35,151.85,151.8,8.35]
[1718251981417,0.34,151.89,151.81,8.35]
[1718251981929,8.35,151.87,151.81,8.35]
[1718251982235,0.17,151.89,151.82,8.35]
[1718251982430,8.35,151.88,151.82,8.35]
[1718251982615,8.35,151.87,151.82,8.35]
[1718251982931,8.35,151.85,151.79,16.157]
[1718251983328,0.17,151.89,151.8,8.35]
[1718251983511,8.35,151.86,151.81,8.35]
[1718251983912,0.17,151.88,151.8,8.35]
[1718251983913,8.35,151.85,151.8,8.35]
[1718251984627,8.35,151.86,151.81,8.35]
[1718251984955,8.35,151.87,151.81,8.35]
[1718251985120,0.51,151.89,151.82,8.35]
[1718251985319,22.7556,151.9,151.79,16.157]
[1718251985526,8.35,151.89,151.84,8.35]
[1718251985729,8.35,151.89,151.8,20.68]
[1718251986028,8.35,151.89,151.84,8.35]
[1718251986930,8.35,151.9,151.85,8.35]
[1718251987437,0.17,151.93,151.85,8.35]
[1718251987630,8.35,151.92,151.87,8.35]
[1718251988208,22.1854,151.94,151.87,8.35]
[1718251988413,8.35,151.92,151.87,8.35]
[1718251989213,22.1854,151.94,151.87,8.35]
[1718251989433,8.35,151.92,151.86,8.35]
[1718251990025,8.35,151.92,151.87,8.35]
[1718251992146,8.35,151.92,151.86,8.35]
[1718251994333,0.04108955,151.97,151.9,8.35]
[1718251994519,8.35,151.95,151.9,8.35]
[1718251994720,0.04108955,151.97,151.9,8.35]
[1718251995117,8.35,151.96,151.9,8.35]
[1718251995326,0.04108955,151.97,151.91,8.35]
[1718251995526,0.04108955,151.97,151.91,23.3974]
[1718251995839,0.04108955,151.97,151.92,8.35]
[1718251996041,0.04108955,151.97,151.93,8.35]
[1718251999437,0.04108955,151.97,151.92,0.17]
[1718251999642,0.04108955,151.97,151.96,8.35]
[1718252001943,0.04108955,151.97,151.96,8.69]
[1718252002341,0.04108955,151.97,151.96,24.7147]
[1718252002541,0.04108955,151.97,151.96,44.7147]
[1718252002724,0.04108955,151.97,151.96,44.8847]
[1718252004828,252.21837469,152.05,151.97,0.17]
[1718252005153,8.35,152.06,152.01,8.35]
[1718252005348,8.35,152.05,151.97,20.51]
[1718252005551,8.35,152.05,152.0,8.35]
[1718252005846,8.35,152.06,152.01,8.35]
[1718252007544,15.3231,152.09,152.01,8.35]
[1718252007728,8.35,152.07,152.02,8.35]
[1718252008423,8.35,152.06,152.01,8.35]
[1718252008950,15.3231,152.09,152.01,8.35]
[1718252009123,8.35,152.06,152.01,8.35]
[1718252010147,15.3231,152.09,152.01,8.35]
[1718252010359,8.35,152.06,152.01,8.35]
[1718252011856,8.35,152.06,151.97,20.51]
[1718252012031,8.35,152.06,152.01,8.35]
[1718252015147,0.17,152.05,151.96,15.8547]
[1718252015350,0.17,152.05,151.97,8.35]
[1718252015351,8.35,152.02,151.97,8.35]
[1718252017246,8.35,152.03,151.98,8.35]
[1718252017553,33.4,152.08,151.98,8.35]
[1718252017741,8.35,152.04,151.99,8.35]
[1718252019359,8.35,152.04,151.96,15.8547]
[1718252019650,8.35,152.03,151.98,8.35]
[1718252020452,8.35,152.02,151.96,15.8547]
[1718252020634,8.35,152.02,151.97,8.35]
[1718252021251,8.35,152.02,151.96,15.8547]
[1718252021553,8.35,152.01,151.95,8.35]
[1718252021943,8.35,152.01,151.96,8.35]
[1718252022728,0.17,152.03,151.91,16.1931]
[1718252023040,8.35,151.98,151.93,8.35]
[1718252024559,8.35,151.98,151.92,8.35]
[1718252024990,8.35,151.96,151.91,16.1931]
[1718252025331,8.35,151.97,151.91,16.1931]
[1718252025657,8.35,151.97,151.92,8.35]
[1718252026362,8.35,151.97,151.91,24.5431]
[1718252026565,8.35,151.97,151.91,16.1931]
[1718252026872,8.35,151.95,151.87,15.4387]
[1718252027057,0.17,151.97,151.87,15.4387]
[1718252027058,8.35,151.94,151.87,15.4387]
[1718252027549,8.35,151.94,151.89,8.35]
[1718252028550,8.35,151.94,151.87,15.4387]
[1718252028749,8.35,151.94,151.88,8.35]
[1718252029567,8.35,151.94,151.89,8.35]
[1718252030647,0.17,151.96,151.9,8.35]
[1718252030848,8.35,151.95,151.9,8.35]
[1718252031772,8.35,151.96,151.91,8.35]
[1718252032562,15.5243,151.98,151.87,15.4387]
[1718252032563,15.1843,151.98,151.92,8.35]
[1718252032947,8.35,151.97,151.92,8.35]
[1718252033147,15.1843,151.98,151.92,8.35]
[1718252033452,8.35,151.97,151.92,8.35]
[1718252034149,8.35,151.96,151.91,8.35]
[1718252034346,8.35,151.96,151.9,8.35]
[1718252034653,8.35,151.96,151.88,0.17]
[1718252034854,8.35,151.95,151.9,8.35]
[1718252036268,8.35,151.94,151.89,8.35]
[1718252036749,0.17,151.99,151.9,8.35]
[1718252036950,8.35,151.95,151.9,8.35]
[1718252037541,0.68,151.99,151.9,8.35]
[1718252037740,8.35,151.97,151.92,8.35]
[1718252038372,6.5889,152.0,151.93,8.35]
[1718252038553,8.35,151.98,151.93,8.35]
[1718252039467,8.35,151.97,151.92,8.35]
[1718252040947,6.5889,152.0,151.88,20.0]
[1718252041153,8.35,151.96,151.9,8.35]
[1718252041464,8.35,151.96,151.91,8.35]
[1718252041674,6.5889,152.0,151.88,20.0]
[1718252041849,16.4876,152.02,151.94,8.35]
[1718252041850,8.35,151.99,151.94,8.35]
[1718252042053,16.4876,152.02,151.94,8.35]
[1718252042248,8.35,152.0,151.94,8.35]
[1718252042472,8.35,151.99,151.94,8.35]
[1718252042652,8.35,152.0,151.94,8.35]
[1718252042849,16.4876,152.02,151.95,8.35]
[1718252043053,8.35,152.0,151.95,8.35]
[1718252043558,8.35,152.0,151.92,15.9106]
[1718252043559,8.35,151.99,151.92,15.9106]
[1718252043867,16.4876,152.02,151.92,15.9106]
[1718252043868,8.35,151.98,151.92,24.2606]
[1718252044172,8.35,151.97,151.92,24.2606]
[1718252044676,8.35,151.98,151.92,24.2606]
[1718252046169,8.35,151.99,151.94,8.35]
[1718252047380,6.1875,152.04,151.96,8.35]
[1718252047554,8.35,152.02,151.97,8.35]
[1718252048178,6.1875,152.04,151.97,8.35]
[1718252048386,8.35,152.02,151.97,8.35]
[1718252050779,16.2187,152.06,151.99,8.35]
[1718252050960,16.2187,152.06,152.0,8.35]
[1718252050961,8.35,152.05,152.0,8.35]
[1718252051799,8.35,152.04,151.99,8.35]
[1718252054457,39.4065,152.08,151.99,8.35]
[1718252054663,6.0065,152.08,151.99,8.35]
[1718252054859,8.35,152.06,151.98,16.0004]
[1718252055064,8.35,152.06,152.0,8.35]
[1718252055563,8.35,152.06,152.01,8.35]
[1718252056891,8.35,152.06,152.0,8.35]
[1718252057567,15.2781,152.09,152.0,8.35]
[1718252057764,8.35,152.05,152.0,8.35]
[1718252058992,8.35,152.05,151.98,16.0004]
[1718252059165,8.35,152.05,152.0,8.35]
[1718252062584,15.2781,152.09,152.0,8.35]
[1718252062793,8.35,152.05,152.0,8.35]
[1718252063484,8.35,152.05,151.98,16.0004]
[1718252063687,8.35,152.05,152.0,8.35]
[1718252064198,8.35,152.08,151.99,8.35]
[1718252064377,8.35,152.05,152.0,8.35]
[1718252065503,15.2781,152.09,152.0,8.35]
[1718252065711,8.35,152.05,152.0,8.35]
[1718252066206,15.2781,152.09,152.0,8.35]
[1718252066708,8.35,152.06,152.01,8.35]
[1718252068781,15.1081,152.09,152.01,8.35]
[1718252068981,8.35,152.06,152.01,8.35]
[1718252071093,15.1081,152.09,152.02,8.35]
[1718252071404,8.35,152.07,152.02,8.35]
[1718252072482,0.818979,152.13,152.06,8.35]
[1718252072685,0.818979,152.13,152.08,8.35]
[1718252072881,9.168979,152.13,152.08,8.35]
[1718252074181,0.818979,152.13,152.07,6.1092]
[1718252074382,0.818979,152.13,152.12,8.35]
[1718252075094,0.818979,152.13,152.11,8.35]
[1718252075504,0.818979,152.13,152.1,8.35]
[1718252076283,0.818979,152.13,152.08,20.0]
[1718252076516,0.818979,152.13,152.11,8.35]
[1718252077504,0.818979,152.13,152.12,8.35]
[1718252080211,0.818979,152.13,152.09,0.17]
[1718252080393,0.818979,152.13,152.09,0.68]
[1718252080710,0.818979,152.13,152.12,8.35]
[1718252081117,0.818979,152.13,152.08,20.0]
[1718252081284,0.818979,152.13,152.1,8.35]
[1718252081485,0.818979,152.13,152.12,8.35]
[1718252082496,0.818979,152.13,152.12,8.86]
[1718252083609,0.818979,152.13,152.12,8.35]
[1718252087815,0.818979,152.13,152.12,8.86]
[1718252088115,0.818979,152.13,152.12,25.1461]
[1718252088418,0.818979,152.13,152.12,25.3161]
[1718252089490,0.818979,152.13,152.12,25.1461]
[1718252090211,0.818979,152.13,152.12,25.3161]
[1718252093208,0.818979,152.13,152.08,41.61440496]
[1718252093538,0.818979,152.13,152.08,36.4804]
[1718252093728,0.818979,152.13,152.11,8.35]
[1718252093921,0.818979,152.13,152.12,8.35]
[1718252096734,0.818979,152.13,152.12,8.69]
[1718252097232,0.818979,152.13,152.12,8.35]
[1718252097419,0.818979,152.13,152.08,36.4804]
[1718252097621,0.818979,152.13,152.1,8.35]
[1718252097822,0.818979,152.13,152.09,8.35]
[1718252099834,0.818979,152.13,152.08,20.0]
[1718252100127,0.818979,152.13,152.09,8.35]
[1718252100519,0.818979,152.13,152.08,8.35]
[1718252100714,9.168979,152.13,152.08,8.35]
[1718252100917,8.35,152.12,152.06,20.0]
[1718252101115,0.818979,152.13,152.04,15.2346]
[1718252101328,8.35,152.11,152.06,8.35]
[1718252102236,0.818979,152.13,152.06,8.35]
[1718252102537,8.35,152.12,152.06,8.35]
[1718252102735,8.35,152.12,152.07,8.35]
[1718252102924,9.168979,152.13,152.08,8.35]
[1718252105057,9.168979,152.13,152.04,15.2346]
[1718252105228,9.168979,152.13,152.08,8.35]
[1718252105749,8.35,152.09,152.0,15.0499]
[1718252105924,8.35,152.09,152.04,8.35]
[1718252106120,8.35,152.08,152.0,48.4499]
[1718252106318,22.2988,152.11,151.97,14.08528975]
[1718252106319,0.17,152.1,151.97,14.08528975]
[1718252106547,8.35,152.03,151.96,15.0499]
[1718252106849,8.35,152.03,151.97,8.35]
[1718252107016,15.6127,152.05,151.99,8.35]
[1718252107218,23.9627,152.05,152.0,8.35]
[1718252107414,8.35,152.03,151.96,15.0499]
[1718252107841,21.6552,152.05,151.96,15.0499]
[1718252108141,30.0052,152.05,152.0,8.35]
[1718252108635,8.35,152.04,151.96,15.0499]
[1718252108940,21.6552,152.05,151.96,15.0499]
[1718252109343,21.6552,152.05,151.93,6.4205]
[1718252109933,0.17,152.04,151.94,20.0]
[1718252110649,0.68,152.04,151.93,20.0]
[1718252110825,0.68,152.04,151.92,16.4739]
[1718252111016,20.68,152.04,151.92,16.4739]
[1718252111217,45.62,152.04,151.92,16.4739]
[1718252111848,20.68,152.04,151.92,16.4739]
[1718252112642,20.68,152.04,151.93,0.51]
[1718252113944,20.0,152.04,151.93,0.51]
[1718252114126,21.6552,152.05,151.94,25.28]
[1718252114444,21.6552,152.05,151.95,20.34]
[1718252115350,21.6552,152.05,151.96,0.17]
[1718252117551,21.6552,152.05,151.96,0.34]
[1718252117757,21.6552,152.05,151.97,0.34]
[1718252118629,21.6552,152.05,151.95,20.0]
[1718252120945,0.17,152.04,151.95,20.0]
[1718252121446,0.17,152.04,151.94,0.51]
[1718252122359,21.6552,152.05,151.95,0.17]
[1718252122541,21.6552,152.05,151.95,0.68]
[1718252123472,21.6552,152.05,151.95,20.68]
[1718252124756,6.1296,152.09,151.98,0.17]
[1718252125070,22.2972,152.09,151.98,20.68]
[1718252128859,8.31,152.07,152.02,8.31]
[1718252129038,22.2972,152.09,151.98,20.68]
[1718252129244,8.31,152.05,151.98,0.17]
[1718252129455,8.31,152.05,151.97,0.17]
[1718252129636,8.31,152.05,151.99,8.31]
[1718252131264,8.31,152.05,151.97,0.17]
[1718252131469,8.31,152.04,151.97,0.17]
[1718252131668,15.0898,152.03,151.96,20.0]
[1718252131968,6.2805,152.02,151.98,8.31]
[1718252133470,6.2805,152.02,151.93,25.17298544]
[1718252133471,6.2528,152.06,151.94,0.17]
[1718252133656,14.5628,152.06,152.01,8.31]
[1718252135099,6.2528,152.06,152.03,8.31]
[1718252135369,14.5628,152.06,152.01,8.31]
[1718252136473,6.2528,152.06,151.94,139.75483227]
[1718252136673,8.31,152.04,151.98,8.31]
[1718252136857,6.2528,152.06,151.94,139.75483227]
[1718252137054,6.2528,152.06,151.95,20.0]
[1718252138377,6.2528,152.06,151.96,24.94]
[1718252138548,6.2528,152.06,151.97,20.34]
[1718252138751,6.2528,152.06,151.98,0.17]
[1718252148066,6.2528,152.06,151.98,0.34]
[1718252148268,6.2528,152.06,151.99,0.34]
[1718252148670,6.2528,152.06,152.0,0.17]
[1718252148987,6.2528,152.06,152.0,0.34]
[1718252149489,6.2528,152.06,152.01,0.34]
[1718252151994,16.2595,152.07,152.01,0.34]
[1718252157023,16.2595,152.07,152.04,8.31]
[1718252158420,16.2595,152.07,152.05,8.31]
[1718252160914,6.0188,152.1,152.06,8.31]
[1718252161117,6.0188,152.1,152.07,8.31]
[1718252161291,6.0188,152.1,152.08,8.31]
[1718252161490,6.0188,152.1,152.09,8.31]
[1718252162712,0.818979,152.13,152.07,0.17]
[1718252162930,0.818979,152.13,152.12,8.31]
[1718252163107,0.818979,152.13,152.07,20.68]
[1718252163413,0.818979,152.13,152.12,8.31]
[1718252164301,0.818979,152.13,152.08,33.24]
[1718252164617,0.818979,152.13,152.11,8.31]
[1718252165422,0.818979,152.13,152.12,8.31]
[1718252168016,0.818979,152.13,152.09,20.34]
[1718252168323,0.818979,152.13,152.11,8.31]
[1718252169112,0.818979,152.13,152.09,20.0]
[1718252169307,0.818979,152.13,152.11,8.31]
[1718252169625,0.818979,152.13,152.12,8.31]
[1718252172803,0.818979,152.13,152.12,8.65]
[1718252175841,0.818979,152.13,152.12,8.82]
[1718252176047,0.818979,152.13,152.12,28.99]
[1718252176211,22.1189,152.22,152.13,0.17]
[1718252176408,22.1189,152.22,152.17,8.31]
[1718252178808,30.4289,152.22,152.17,8.31]
[1718252179632,22.1189,152.22,152.17,8.31]
[1718252180414,22.1189,152.22,152.13,20.68]
[1718252180606,8.31,152.25,152.2,8.31]
[1718252183337,8.31,152.22,152.17,8.31]
[1718252184445,8.31,152.19,152.14,8.31]
[1718252184810,8.31,152.2,152.15,8.31]
[1718252185043,15.3657,152.21,152.15,8.31]
[1718252185205,23.6757,152.21,152.16,8.31]
[1718252186007,15.3657,152.21,152.17,8.31]
[1718252186215,6.3425,152.22,152.18,8.31]
[1718252186520,23.6757,152.25,152.2,8.31]
[1718252186843,15.3657,152.25,152.21,8.31]
[1718252187831,15.3657,152.25,152.22,8.31]
[1718252188812,15.3657,152.25,152.18,0.17]
[1718252189128,15.3657,152.25,152.18,0.34]
[1718252189327,15.3657,152.25,152.19,0.34]
[1718252189712,6.3425,152.27,152.19,0.34]
[1718252189914,6.1437,152.31,152.2,0.34]
[1718252190114,6.1437,152.31,152.21,0.34]
[1718252190321,6.1437,152.31,152.22,0.17]
[1718252190515,15.9701,152.32,152.22,6.9705]
[1718252190717,15.9701,152.32,152.24,0.17]
[1718252190929,15.9701,152.32,152.24,0.34]
[1718252191133,6.0304,152.35,152.26,0.17]
[1718252191437,6.0304,152.35,152.26,0.34]
[1718252191642,6.0304,152.35,152.27,0.34]
[1718252191843,6.0304,152.35,152.27,0.51]